bitfinex/quotes_SOLUSD_20251024
["timestamp","ask_amount","ask_price","bid_price","bid_amount"]
[1761277561208,4.0111139,191.43,191.42,8.56525345]
[1761277561782,0.14216157,191.43,191.42,8.56525345]
[1761277562810,0.2,191.51,191.45,33.75647521]
[1761277562999,3.87018114,191.5,191.46,11.59647521]
[1761277563309,0.2,191.51,191.49,2.62113894]
[1761277563492,0.2,191.51,191.47,0.72]
[1761277563693,0.2,191.51,191.5,2.62113894]
[1761277563893,4.21038312,191.51,191.5,2.62113894]
[1761277564096,0.14216157,191.5,191.46,10.87647521]
[1761277564311,0.14216157,191.5,191.49,2.62113894]
[1761277564714,0.14216157,191.5,191.49,3.34113894]
[1761277565529,0.14216157,191.5,191.49,8.56334375]
[1761277566809,0.2,191.51,191.49,8.56334375]
[1761277567012,0.34216157,191.51,191.5,3.34113894]
[1761277567495,0.34216157,191.51,191.5,8.56307105]
[1761277569601,0.2,191.51,191.5,8.56307105]
[1761277570617,0.2,191.51,191.5,7.84307105]
[1761277571113,0.2,191.51,191.5,8.55307105]
[1761277572095,0.2,191.51,191.5,10.64441029]
[1761277572516,0.2,191.51,191.5,8.55307105]
[1761277572718,0.2,191.51,191.5,8.49308595]
[1761277573617,0.2,191.51,191.5,10.58442519]
[1761277577947,0.2,191.51,191.5,8.49308595]
[1761277578243,0.2,191.51,191.5,21.46079106]
[1761277578837,0.2,191.51,191.5,57.70079106]
[1761277581837,0.2,191.51,191.5,60.32193]
[1761277582030,1e-08,191.53,191.52,22.88]
[1761277582218,1e-08,191.53,191.52,26.21113894]
[1761277582839,1e-08,191.53,191.52,28.3021502]
[1761277584125,1e-08,191.53,191.52,33.523537]
[1761277585412,1e-08,191.53,191.52,30.19239806]
[1761277585625,1e-08,191.53,191.52,5.2213868]
[1761277585942,1e-08,191.53,191.52,7.84252574]
[1761277587740,1e-08,191.53,191.52,5.2213868]
[1761277589347,1e-08,191.53,191.5,16.38596922]
[1761277589663,1e-08,191.53,191.51,7.84279838]
[1761277590839,1e-08,191.53,191.51,8.53279838]
[1761277591629,1e-08,191.53,191.52,7.84252574]
[1761277593133,1e-08,191.53,191.52,5.2213868]
[1761277593325,1e-08,191.53,191.52,8.53252574]
[1761277593727,2.81113895,191.53,191.49,22.88]
[1761277593946,3.99351228,191.52,191.45,2.09112057]
[1761277594154,3.99351228,191.52,191.43,16.37028533]
[1761277594155,2.76330051,191.5,191.43,16.37028533]
[1761277594649,0.19,191.49,191.43,16.37028533]
[1761277594825,0.19,191.49,191.4,24.62770465]
[1761277594826,2.62113894,191.47,191.4,24.62770465]
[1761277595022,0.14216157,191.46,191.41,2.62113894]
[1761277595232,2.95330051,191.46,191.43,22.88]
[1761277595426,0.33216157,191.46,191.41,2.62113894]
[1761277595637,0.19,191.45,191.41,5.22438744]
[1761277595845,0.19,191.45,191.41,7.84552638]
[1761277597029,0.33216157,191.45,191.41,5.22438744]
[1761277597662,0.19,191.44,191.41,5.22438744]
[1761277598755,0.14216157,191.45,191.41,5.22438744]
[1761277599065,0.14216157,191.44,191.4,18.28588983]
[1761277599539,0.19,191.43,191.4,18.28588983]
[1761277600727,0.19,191.43,191.4,5.22466039]
[1761277600951,0.14216157,191.4,191.34,7.8473174]
[1761277601162,2.76330051,191.38,191.34,5.22617846]
[1761277601672,0.19,191.37,191.32,7.84774322]
[1761277602033,2.62113894,191.35,191.3,5.32713166]
[1761277602265,2.76330051,191.34,191.3,0.1]
[1761277602760,0.19,191.33,191.3,0.1]
[1761277602944,0.19,191.33,191.3,5.3273879]
[1761277603630,2.76330051,191.34,191.3,5.3273879]
[1761277603839,0.33216157,191.34,191.3,5.3273879]
[1761277604668,0.14216157,191.34,191.3,8.66852684]
[1761277604861,2.95330051,191.36,191.3,6.0473879]
[1761277605038,2.95330051,191.36,191.3,8.66852684]
[1761277606743,0.14216157,191.33,191.24,0.1]
[1761277606938,0.14216157,191.29,191.25,2.62113894]
[1761277607434,0.14216157,191.29,191.26,3.34113894]
[1761277607634,0.14216157,191.29,191.27,2.62113894]
[1761277607834,0.14216157,191.29,191.27,3.34113894]
[1761277608068,0.14216157,191.29,191.27,2.62113894]
[1761277608256,39.01330051,191.33,191.27,2.62113894]
[1761277608445,2.62113894,191.32,191.27,2.62113894]
[1761277608645,2.81113894,191.31,191.25,2.62113894]
[1761277608952,2.81113894,191.31,191.25,30.72964854]
[1761277609260,2.81113894,191.31,191.25,28.1085096]
[1761277609446,2.81113894,191.31,191.25,30.72964854]
[1761277609756,2.62113894,191.31,191.25,31.44964854]
[1761277610347,0.14216157,191.3,191.25,31.44964854]
[1761277610748,0.14216157,191.3,191.26,5.94834341]
[1761277611262,2.76330051,191.32,191.26,8.56948235]
[1761277612034,2.76330051,191.32,191.27,7.84928424]
[1761277612634,2.76330051,191.32,191.27,8.56928424]
[1761277615461,2.76330051,191.32,191.28,0.72]
[1761277615672,0.14216157,191.32,191.28,0.72]
[1761277615970,0.14216157,191.32,191.3,2.62113894]
[1761277615971,36.32,191.32,191.3,2.62113894]
[1761277616151,0.14216157,191.31,191.3,2.62113894]
[1761277616668,0.14216157,191.31,191.3,3.34113894]
[1761277616872,0.14216157,191.31,191.3,0.72]
[1761277617071,0.14216157,191.31,191.3,5.94739153]
[1761277617275,0.14216157,191.31,191.3,5.22739153]
[1761277617860,0.14216157,191.31,191.3,5.94739153]
[1761277618861,0.14216157,191.32,191.3,8.56853047]
[1761277619063,0.14216157,191.32,191.31,3.34113894]
[1761277620964,0.14216157,191.33,191.31,8.56825722]
[1761277621175,0.14216157,191.33,191.32,3.34113894]
[1761277622677,0.14216157,191.33,191.32,2.3994316]
[1761277622867,0.14216157,191.33,191.32,7.62627667]
[1761277623661,0.14216157,191.33,191.32,5.94684507]
[1761277629987,12.41442129,191.34,191.32,7.62627667]
[1761277630283,12.41442129,191.34,191.33,2.3994316]
[1761277630481,12.41442129,191.34,191.33,13.27590681]
[1761277631185,36.3,191.39,191.33,13.27590681]
[1761277631390,0.14216157,191.38,191.37,1.6794316]
[1761277631775,0.14216157,191.38,191.37,2.3894316]
[1761277631978,0.14216157,191.38,191.37,7.61491103]
[1761277634887,0.14216157,191.39,191.37,7.61491103]
[1761277635088,0.14216157,191.39,191.38,0.71]
[1761277635390,40.11619349,191.42,191.38,2.3894316]
[1761277635596,40.11619349,191.42,191.4,1.6794316]
[1761277635597,36.28,191.42,191.4,1.6794316]
[1761277635884,36.28,191.42,191.41,1.6794316]
[1761277636086,36.42216157,191.42,191.41,2.3894316]
[1761277636288,0.14216157,191.42,191.41,2.3894316]
[1761277636478,0.14216157,191.42,191.41,7.61381904]
[1761277636676,36.28,191.45,191.41,7.61381904]
[1761277636992,36.28,191.45,191.43,1.6794316]
[1761277637378,36.28,191.45,191.44,0.71]
[1761277637563,40.26676786,191.45,191.44,0.71]
[1761277637966,40.12460629,191.45,191.44,0.71]
[1761277638180,36.28,191.45,191.44,0.71]
[1761277638374,40.26949634,191.45,191.44,0.71]
[1761277638579,40.26949634,191.45,191.44,5.93356874]
[1761277639186,36.42216157,191.45,191.44,5.93356874]
[1761277639490,40.27015061,191.45,191.44,5.93356874]
[1761277641500,40.12798904,191.45,191.44,5.93356874]
[1761277641668,36.42216157,191.45,191.44,7.61300034]
[1761277642369,0.14216157,191.45,191.44,7.61300034]
[1761277643683,5.41159893,191.52,191.44,7.61300034]
[1761277643874,40.13690677,191.51,191.46,1.6794316]
[1761277644073,0.14216157,191.49,191.46,1.6794316]
[1761277644384,0.14216157,191.49,191.47,0.71]
[1761277644789,3.99906834,191.49,191.47,0.71]
[1761277644985,0.14216157,191.49,191.47,0.71]
[1761277645194,36.28,191.5,191.48,1.6794316]
[1761277645486,0.14216157,191.49,191.48,1.6794316]
[1761277645894,0.14216157,191.49,191.48,6.90190914]
[1761277646090,0.14216157,191.49,191.48,7.61190914]
[1761277650399,0.14216157,191.51,191.48,7.61190914]
[1761277650578,36.28,191.52,191.5,1.6794316]
[1761277651091,36.42216157,191.52,191.51,0.65]
[1761277651582,0.14216157,191.51,191.48,6.90190914]
[1761277651779,0.14216157,191.51,191.49,0.65]
[1761277652393,0.14216157,191.51,191.49,5.8719798]
[1761277652698,0.14216157,191.51,191.5,0.65]
[1761277654593,0.14216157,191.51,191.5,5.87193211]
[1761277656397,0.14216157,191.51,191.48,2.3294316]
[1761277656802,0.14216157,191.51,191.49,0.65]
[1761277659310,0.14216157,191.51,191.49,5.87202871]
[1761277660284,0.14216157,191.51,191.5,5.87193211]
[1761277661511,0.14216157,191.51,191.49,5.93220481]
[1761277662290,0.14216157,191.51,191.5,0.71]
[1761277662707,0.14216157,191.51,191.5,5.93193211]
[1761277668015,0.14216157,191.51,191.5,7.61136371]
[1761277668896,1e-08,191.53,191.5,7.61136371]
[1761277669090,1e-08,191.53,191.52,1.6794316]
[1761277669492,1e-08,191.53,191.52,2.3894316]
[1761277670713,1e-08,191.53,191.52,7.6108184]
[1761277678614,1e-08,191.53,191.5,2.09101126]
[1761277678801,5.6855132,191.52,191.5,2.09101126]
[1761277679007,5.6855132,191.51,191.5,2.09101126]
[1761277679200,0.14216157,191.5,191.48,5.22247754]
[1761277679599,0.14216157,191.5,191.48,5.93247754]
[1761277680222,4.0060816,191.5,191.48,5.93247754]
[1761277680515,0.14216157,191.5,191.47,5.2227503]
[1761277681214,3.86889137,191.49,191.47,5.2227503]
[1761277681518,0.14216157,191.5,191.47,5.2227503]
[1761277681719,3.87043661,191.49,191.47,5.2227503]
[1761277682094,3.87043661,191.49,191.47,5.9327503]
[1761277682308,0.14216157,191.5,191.47,5.9327503]
[1761277682507,3.87148495,191.49,191.47,5.9327503]
[1761277682708,0.14216157,191.51,191.47,5.9327503]
[1761277682919,3.87169333,191.5,191.47,5.9327503]
[1761277683130,3.87169333,191.49,191.47,5.9327503]
[1761277683423,4.0138549,191.48,191.47,28.1027503]
[1761277683627,0.14216157,191.48,191.47,28.1027503]
[1761277683920,4.0138549,191.48,191.47,28.1027503]
[1761277684116,0.14216157,191.48,191.47,28.1027503]
[1761277684322,4.0138549,191.48,191.47,28.1027503]
[1761277687023,4.0138549,191.48,191.45,3.33056929]
[1761277687024,0.14216157,191.47,191.46,5.22300595]
[1761277687211,4.0138549,191.47,191.43,39.26978572]
[1761277687414,3.87169333,191.46,191.44,5.93356874]
[1761277687617,0.14216157,191.47,191.44,8.55413803]
[1761277687820,4.01672062,191.46,191.45,0.71]
[1761277688321,3.87455905,191.49,191.45,14.2070445]
[1761277688515,1e-08,191.53,191.47,5.2227503]
[1761277688516,3.87569183,191.48,191.47,5.2227503]
[1761277688721,3.87569183,191.48,191.47,7.84331959]
[1761277688921,3.87569183,191.48,191.47,8.55331959]
[1761277690029,3.87569183,191.48,191.47,5.9327503]
[1761277690230,3.87569183,191.48,191.47,8.55331959]
[1761277694032,0.14216157,191.52,191.47,8.55331959]
[1761277694334,0.14216157,191.5,191.48,3.27056929]
[1761277694523,3.87662722,191.49,191.48,3.27056929]
[1761277696212,3.87662722,191.49,191.48,5.87247754]
[1761277696413,3.87662722,191.49,191.47,2.62056929]
[1761277696414,6.82935808,191.49,191.44,3.27056929]
[1761277696716,0.14216157,191.47,191.44,0.65]
[1761277696912,3.87662722,191.46,191.44,0.65]
[1761277697235,0.14216157,191.47,191.44,3.27056929]
[1761277697730,0.14216157,191.47,191.45,0.65]
[1761277697935,0.14216157,191.47,191.46,5.22302308]
[1761277698240,4.20789445,191.47,191.44,5.2233662]
[1761277698530,3.87573288,191.46,191.44,5.2233662]
[1761277698732,3.87573288,191.45,191.44,5.2233662]
[1761277699247,3.87573288,191.45,191.42,3.27056929]
[1761277699248,4.01789445,191.45,191.37,13.06325731]
[1761277699542,2.76273086,191.41,191.37,5.22547943]
[1761277699710,4.06573288,191.44,191.37,5.22547943]
[1761277699711,0.14216157,191.39,191.37,5.22547943]
[1761277700738,0.14216157,191.39,191.36,5.2257525]
[1761277702430,0.14216157,191.39,191.38,5.22520639]
[1761277703415,0.14216157,191.39,191.36,5.2257525]
[1761277703617,0.14216157,191.39,191.35,26.15056929]
[1761277703618,0.14216157,191.37,191.35,22.88]
[1761277703957,0.14216157,191.35,191.33,5.22657189]
[1761277704623,0.14216157,191.35,191.31,13.06726443]
[1761277704624,0.14216157,191.35,191.31,5.22690465]
[1761277704846,0.14216157,191.35,191.31,5.87690465]
[1761277705313,0.14216157,191.35,191.32,0.65]
[1761277705513,0.14216157,191.35,191.32,5.87663303]
[1761277706131,2.76273086,191.35,191.32,5.22663303]
[1761277706441,39.02273086,191.35,191.32,5.22663303]
[1761277707845,0.14216157,191.36,191.33,0.66]
[1761277708161,0.14216157,191.36,191.33,3.28056929]
[1761277708531,0.14216157,191.36,191.34,0.66]
[1761277709744,0.14216157,191.36,191.34,3.28056929]
[1761277710447,0.14216157,191.36,191.34,8.50669446]
[1761277711745,0.14216157,191.36,191.34,5.88612517]
[1761277712843,36.40216157,191.38,191.35,0.66]
[1761277713021,36.40216157,191.38,191.35,8.50658295]
[1761277713221,36.40216157,191.38,191.36,0.66]
[1761277713428,36.40216157,191.38,191.35,5.88601366]
[1761277713927,0.14216157,191.38,191.35,5.88601366]
[1761277714336,0.14216157,191.38,191.36,5.88572548]
[1761277714538,0.14216157,191.38,191.36,8.50629477]
[1761277714839,0.14216157,191.4,191.37,0.66]
[1761277715540,0.14216157,191.4,191.36,7.84629477]
[1761277715541,0.14216157,191.4,191.36,8.50629477]
[1761277715723,0.14216157,191.4,191.37,0.66]
[1761277716823,0.14216157,191.4,191.33,28.10645407]
[1761277716824,2.62056929,191.39,191.33,28.10645407]
[1761277717023,0.14216157,191.36,191.33,28.10645407]
[1761277717642,2.76273086,191.36,191.33,22.88]
[1761277717946,2.95273086,191.36,191.33,22.88]
[1761277718844,2.95273086,191.36,191.33,28.10654034]
[1761277719051,2.95273086,191.36,191.3,13.06790131]
[1761277719052,2.81056929,191.35,191.3,5.88737175]
[1761277719354,0.14216157,191.33,191.3,5.88737175]
[1761277719642,0.14216157,191.33,191.31,0.66]
[1761277719942,0.14216157,191.33,191.3,5.88737175]
[1761277720126,0.14216157,191.33,191.3,5.22737175]
[1761277720846,0.14216157,191.33,191.3,5.88737175]
[1761277721953,0.14216157,191.33,191.3,5.22737175]
[1761277722136,0.14216157,191.34,191.31,0.7]
[1761277722338,0.14216157,191.34,191.31,3.32056929]
[1761277723223,0.14216157,191.34,191.32,5.92684507]
[1761277724051,0.14216157,191.38,191.32,7.84741436]
[1761277724235,0.14216157,191.36,191.32,5.22684507]
[1761277724547,2.76273086,191.36,191.32,5.22684507]
[1761277724727,0.14216157,191.34,191.3,2.62056929]
[1761277724921,0.14216157,191.34,191.3,3.32056929]
[1761277725127,0.14216157,191.34,191.31,5.2270678]
[1761277725342,0.14216157,191.34,191.31,5.9270678]
[1761277726062,0.14216157,191.34,191.32,0.7]
[1761277726257,0.14216157,191.34,191.32,5.92669533]
[1761277726753,0.14216157,191.34,191.32,5.22669533]
[1761277727131,0.14216157,191.34,191.32,5.92669533]
[1761277727345,0.14216157,191.36,191.33,0.7]
[1761277727541,36.28,191.37,191.33,0.7]
[1761277727843,2.62056929,191.34,191.28,22.88]
[1761277728174,2.62056929,191.32,191.28,5.92775417]
[1761277728325,39.06273086,191.33,191.28,28.80775417]
[1761277728527,39.06273086,191.33,191.29,0.7]
[1761277729739,36.44216157,191.33,191.29,0.7]
[1761277730060,0.19,191.38,191.32,2.62056929]
[1761277730263,36.3,191.37,191.33,2.62056929]
[1761277730567,0.14216157,191.36,191.32,2.62056929]
[1761277730723,0.14216157,191.36,191.33,0.7]
[1761277730927,0.14216157,191.36,191.32,0.7]
[1761277732544,0.14216157,191.36,191.32,3.32056929]
[1761277732751,0.14216157,191.37,191.33,2.62056929]
[1761277732936,0.14216157,191.37,191.33,3.32056929]
[1761277733135,0.19,191.36,191.32,2.62056929]
[1761277733356,0.19,191.36,191.31,2.62056929]
[1761277733658,0.14216157,191.37,191.31,3.32056929]
[1761277734348,5.36783428,191.37,191.32,3.32056929]
[1761277734872,5.36783428,191.37,191.33,0.7]
[1761277735170,36.28,191.38,191.34,2.62056929]
[1761277735573,0.14216157,191.37,191.34,3.32056929]
[1761277736357,0.14216157,191.37,191.34,8.54678166]
[1761277738764,0.14216157,191.37,191.33,2.62056929]
[1761277739152,0.14216157,191.37,191.34,0.7]
[1761277740276,0.14216157,191.37,191.34,5.92624807]
[1761277740483,0.14216157,191.37,191.34,8.54681736]
[1761277740660,36.28,191.38,191.35,3.32056929]
[1761277741251,0.14216157,191.37,191.34,7.84681736]
[1761277741559,0.14216157,191.37,191.35,0.7]
[1761277742165,4.00990156,191.37,191.35,5.92589214]
[1761277742960,4.00990156,191.37,191.36,0.7]
[1761277743166,4.00990156,191.37,191.36,3.32056929]
[1761277743983,4.00990156,191.37,191.36,0.7]
[1761277745180,0.14216157,191.36,191.35,5.22589214]
[1761277745380,4.00990156,191.36,191.35,5.22589214]
[1761277745789,4.00990156,191.36,191.34,5.22628433]
[1761277745990,0.14216157,191.36,191.34,5.22628433]
[1761277746868,0.14216157,191.36,191.35,2.37881546]
[1761277747075,4.01958872,191.36,191.35,2.37881546]
[1761277747390,4.01958872,191.36,191.35,0.7]
[1761277748488,4.01958872,191.36,191.34,5.22623016]
[1761277748695,4.01958872,191.35,191.34,5.92623016]
[1761277748875,4.01958872,191.35,191.34,7.60504562]
[1761277749563,4.01958872,191.35,191.34,6.90504562]
[1761277749974,13.02032526,191.42,191.34,7.60504562]
[1761277750194,0.14216157,191.4,191.37,1.67881546]
[1761277750398,0.14216157,191.38,191.37,1.67881546]
[1761277750692,4.02452199,191.38,191.37,2.37881546]
[1761277752296,0.14216157,191.41,191.37,7.60429489]
[1761277752594,0.14216157,191.39,191.38,0.68]
[1761277752793,4.02376535,191.39,191.38,0.68]
[1761277755098,4.02376535,191.39,191.36,1.67881546]
[1761277755303,0.14216157,191.37,191.35,5.22579318]
[1761277755476,0.14216157,191.37,191.34,5.22626022]
[1761277755793,0.14216157,191.37,191.34,5.90626022]
[1761277756304,0.14216157,191.37,191.33,5.226532]
[1761277756596,0.14216157,191.35,191.31,0.68]
[1761277756800,0.14216157,191.33,191.32,0.68]
[1761277758079,0.14216157,191.33,191.3,8.52685519]
[1761277758878,0.14216157,191.34,191.3,8.52685519]
[1761277759196,0.14216157,191.32,191.3,8.52685519]
[1761277759494,0.14216157,191.34,191.3,8.52685519]
[1761277759703,0.14216157,191.32,191.3,8.52685519]
[1761277759882,0.14216157,191.32,191.3,3.299493]
[1761277760092,0.14216157,191.32,191.31,2.35881546]
[1761277760896,0.14216157,191.32,191.31,0.68]
[1761277761103,0.14216157,191.32,191.31,7.58593374]
[1761277761488,0.14216157,191.32,191.31,5.90711828]
[1761277761691,0.14216157,191.34,191.31,7.58593374]
[1761277761895,4.01805776,191.33,191.32,0.68]
[1761277762401,0.14216157,191.33,191.32,0.68]
[1761277762800,0.14216157,191.33,191.32,5.90684507]
[1761277763498,43.39404262,191.38,191.32,7.58566053]
[1761277763798,3.87662479,191.37,191.32,7.58566053]
[1761277763996,4.01878636,191.36,191.32,7.58566053]
[1761277764200,0.14216157,191.34,191.32,7.58566053]
[1761277764585,0.14216157,191.34,191.33,0.68]
[1761277764785,4.01837304,191.34,191.33,0.68]
[1761277765606,4.01837304,191.34,191.33,7.58538735]
[1761277765797,102.0,191.41,191.33,7.58538735]
[1761277766003,0.14216157,191.39,191.34,0.68]
[1761277766315,3.87692836,191.38,191.34,0.68]
[1761277766482,49.32032526,191.42,191.37,1.67881546]
[1761277766681,3.87738007,191.41,191.37,1.67881546]
[1761277766882,3.87738007,191.4,191.38,0.68]
[1761277767083,3.87738007,191.39,191.38,0.68]
[1761277767283,4.01954164,191.39,191.38,0.68]
[1761277769393,4.01954164,191.39,191.38,5.90520639]
[1761277769608,0.14216157,191.38,191.35,22.88]
[1761277769794,0.14216157,191.36,191.35,22.88]
[1761277769991,0.14216157,191.36,191.35,23.54]
[1761277770208,4.01913105,191.36,191.35,23.54]
[1761277770806,4.01913105,191.36,191.35,0.66]
[1761277771715,4.01913105,191.36,191.33,5.88657189]
[1761277771934,0.14216157,191.34,191.33,5.88657189]
[1761277773114,0.14216157,191.34,191.33,7.56538735]
[1761277774011,4.02399844,191.37,191.33,7.56538735]
[1761277774215,0.14216157,191.35,191.34,7.56511419]
[1761277774417,4.02399844,191.35,191.34,7.56511419]
[1761277775926,4.02399844,191.35,191.34,5.88629873]
[1761277776117,4.02399844,191.35,191.32,7.56540509]
[1761277776312,1.82097703,191.37,191.32,5.88658963]
[1761277776526,3.88393791,191.36,191.32,5.88658963]
[1761277776700,0.14216157,191.34,191.32,0.66]
[1761277776901,0.14216157,191.32,191.3,2.619493]
[1761277777193,4.02556396,191.31,191.3,2.619493]
[1761277777722,4.02556396,191.31,191.3,26.159493]
[1761277778109,4.02556396,191.31,191.3,31.38678192]
[1761277778822,4.02556396,191.31,191.3,30.72678192]
[1761277779429,4.02556396,191.31,191.3,31.38678192]
[1761277783255,0.14216157,191.31,191.3,31.38678192]
[1761277783528,4.02556396,191.31,191.3,31.38678192]
[1761277783725,0.14216157,191.31,191.3,31.38678192]
[1761277783909,4.02556396,191.31,191.3,31.38678192]
[1761277784304,0.14216157,191.31,191.3,31.38678192]
[1761277785110,0.14216157,191.31,191.3,2.619493]
[1761277785111,5.69654426,191.31,191.3,2.619493]
[1761277785513,4.0177288,191.31,191.3,2.619493]
[1761277785714,5.69654426,191.31,191.3,2.619493]
[1761277785921,4.0177288,191.31,191.3,2.619493]
[1761277792715,5.69654426,191.31,191.3,2.619493]
[1761277794126,4.0177288,191.31,191.3,2.619493]
[1761277794328,4.0177288,191.31,191.3,3.289493]
[1761277795238,5.69654426,191.31,191.3,2.619493]
[1761277795430,10.92366254,191.31,191.3,2.619493]
[1761277795634,11.11366254,191.31,191.3,2.619493]
[1761277796637,10.92366254,191.31,191.3,2.619493]
[1761277797339,0.14216157,191.3,191.24,0.1]
[1761277797542,0.14216157,191.25,191.24,0.1]
[1761277797840,4.0177288,191.25,191.24,0.1]
[1761277798023,4.0177288,191.25,191.24,0.77]
[1761277798341,4.0177288,191.25,191.19,0.1]
[1761277798342,2.72899999,191.17,191.02,36.34]
[1761277798526,2.87116156,191.17,191.16,1.67881546]
[1761277798839,0.14216157,191.16,191.15,1.67881546]
[1761277799343,0.14216157,191.16,191.15,2.34881546]
[1761277799546,0.14216157,191.16,191.15,0.67]
[1761277800836,2.72899999,191.17,191.15,2.34881546]
[1761277801041,2.87116156,191.17,191.16,0.67]
[1761277803032,0.14216157,191.16,191.14,0.67]
[1761277804622,0.14216157,191.16,191.14,5.90173181]
[1761277804822,41.28987114,191.22,191.15,2.62886528]
[1761277804823,2.62886528,191.22,191.15,2.62886528]
[1761277805040,2.62886528,191.22,191.16,2.62886528]
[1761277805248,0.14216157,191.21,191.17,0.67]
[1761277805841,0.14216157,191.21,191.17,3.29886528]
[1761277806148,0.14216157,191.21,191.17,8.52979571]
[1761277806447,0.14216157,191.21,191.18,0.67]
[1761277806826,0.14216157,191.21,191.18,3.29886528]
[1761277807244,0.14216157,191.23,191.19,0.67]
[1761277810645,2.77102685,191.22,191.16,41.91110612]
[1761277810846,0.14216157,191.22,191.19,0.67]
[1761277812251,2.62886528,191.21,191.17,5.23074514]
[1761277812428,2.77102685,191.22,191.18,0.69]
[1761277812625,2.77102685,191.2,191.15,10.46030132]
[1761277812933,0.14216157,191.2,191.17,0.69]
[1761277813951,0.14216157,191.2,191.18,0.69]
[1761277814741,2.77102685,191.21,191.18,0.69]
[1761277815450,2.77102685,191.21,191.16,0.69]
[1761277819962,0.14216157,191.19,191.16,0.69]
[1761277821163,0.14216157,191.19,191.16,5.92120425]
[1761277821763,0.14216157,191.19,191.17,0.69]
[1761277821962,0.14216157,191.2,191.17,0.69]
[1761277824136,0.14216157,191.21,191.17,5.92083411]
[1761277824666,0.14216157,191.21,191.18,0.69]
[1761277825040,0.14216157,191.21,191.19,2.62886528]
[1761277825545,0.14216157,191.21,191.2,0.69]
[1761277826061,0.14216157,191.21,191.2,5.92012552]
[1761277826264,2.62886528,191.25,191.2,5.92012552]
[1761277826265,0.14216157,191.23,191.2,5.92012552]
[1761277826452,0.14216157,191.23,191.21,0.69]
[1761277827444,3.85290928,191.24,191.21,8.54859369]
[1761277827655,3.85290928,191.24,191.14,0.52317672]
[1761277827656,0.14216157,191.17,191.13,0.1]
[1761277827854,2.77102685,191.14,191.13,0.1]
[1761277828366,0.14216157,191.14,191.13,0.76]
[1761277829065,0.14216157,191.14,191.13,0.1]
[1761277829272,2.77102685,191.14,191.13,0.1]
[1761277830066,0.14216157,191.14,191.13,0.1]
[1761277832576,0.14216157,191.14,191.13,0.76]
[1761277833283,0.14216157,191.14,191.13,0.1]
[1761277836256,0.14216157,191.14,191.13,0.76]
[1761277836660,0.14216157,191.14,191.13,0.1]
[1761277839359,2.77102685,191.14,191.13,0.1]
[1761277839557,8.00279414,191.14,191.13,0.1]
[1761277839875,11.86240581,191.14,191.13,0.1]
[1761277841557,11.86240581,191.14,191.05,2.62886528]
[1761277841558,22.88,191.11,191.03,0.69]
[1761277841757,0.14216157,191.09,191.04,3.31886528]
[1761277841972,4.00177324,191.09,191.04,3.31886528]
[1761277842171,0.14216157,191.09,191.05,0.69]
[1761277842375,4.00276866,191.09,191.05,0.69]
[1761277842576,4.00276866,191.09,191.05,3.31886528]
[1761277842965,4.00276866,191.09,191.06,0.69]
[1761277843172,6.63163394,191.09,191.06,0.69]
[1761277843369,5.37532388,191.09,191.01,5.23532799]
[1761277843569,0.14216157,191.09,191.04,3.31886528]
[1761277843772,36.78,191.11,191.05,2.62886528]
[1761277843773,2.77102685,191.1,191.05,2.62886528]
[1761277844059,2.77102685,191.1,191.06,0.69]
[1761277845470,0.14216157,191.1,191.06,0.69]
[1761277845877,0.14216157,191.11,191.06,8.55282162]
[1761277846077,2.62886528,191.13,191.07,2.62886528]
[1761277846286,39.44886528,191.14,191.08,2.62886528]
[1761277846483,0.14216157,191.13,191.08,3.31886528]
[1761277846666,0.14216157,191.13,191.09,0.69]
[1761277848091,0.14216157,191.13,191.09,8.55199243]
[1761277848382,5.23119124,191.17,191.11,2.62886528]
[1761277848577,2.62886528,191.16,191.11,2.62886528]
[1761277848774,2.62886528,191.16,191.12,0.69]
[1761277849081,2.62886528,191.17,191.12,0.69]
[1761277849389,0.14216157,191.16,191.12,0.69]
[1761277849977,2.77102685,191.16,191.12,0.69]
[1761277850185,2.62886528,191.16,191.12,0.69]
[1761277850394,0.14216157,191.15,191.12,0.69]
[1761277853310,0.14216157,191.16,191.12,0.69]
[1761277854664,2.77102685,191.16,191.12,0.69]
[1761277857395,2.62886528,191.15,191.12,0.69]
[1761277857595,0.14216157,191.13,191.12,0.69]
[1761277859576,0.14216157,191.14,191.12,0.69]
[1761277861691,2.77102685,191.15,191.11,5.23258467]
[1761277861994,2.77102685,191.15,191.12,0.69]
[1761277863577,0.14216157,191.15,191.12,0.69]
[1761277863792,124.88,191.21,191.12,5.92219596]